bitfinex-derivatives/quotes_ETHF0:USTF0_20250917
["timestamp","ask_amount","ask_price","bid_price","bid_amount"]
[1758131658494,0.4744,4514.8,4514.7,0.8194]
[1758131659685,0.3436,4514.7,4514.1,0.3421]
[1758131660291,0.7992,4514.7,4514.6,0.5851]
[1758131660508,1.0362,4514.7,4514.6,0.5851]
[1758131660889,0.7992,4514.1,4514.0,0.5851]
[1758131661493,0.7992,4514.1,4514.0,0.8194]
[1758131661792,0.2364,4514.1,4514.0,0.9629]
[1758131661992,0.4556,4514.1,4514.0,0.9629]
[1758131662189,0.7992,4514.1,4514.0,0.8194]
[1758131663389,0.2364,4514.1,4514.0,0.9629]
[1758131663590,0.4556,4514.6,4514.5,0.8194]
[1758131663799,1.0362,4514.6,4514.5,0.8194]
[1758131664293,1.0362,4514.6,4514.1,0.3421]
[1758131664498,0.237,4514.6,4514.0,3.3513]
[1758131664701,0.58,4514.2,4514.1,0.8194]
[1758131664898,0.7992,4514.2,4514.1,0.8194]
[1758131665192,0.4556,4514.2,4514.1,0.8194]
[1758131665393,0.237,4514.3,4514.2,0.3421]
[1758131665595,0.2364,4514.3,4514.2,0.8194]
[1758131666597,0.7992,4514.3,4514.2,0.8194]
[1758131666791,0.2364,4514.3,4514.2,0.8194]
[1758131667097,0.4556,4514.3,4514.2,0.8194]
[1758131669194,4.007,4514.9,4514.8,0.5851]
[1758131669398,4.75364755,4514.9,4514.8,0.5851]
[1758131670397,4.51664755,4514.9,4514.8,0.5851]
[1758131670598,4.75364755,4514.9,4514.8,0.5851]
[1758131671188,4.17304755,4514.9,4514.8,0.8194]
[1758131671388,3.5514,4515.9,4514.9,0.3421]
[1758131671589,3.5514,4515.9,4515.7,0.8194]
[1758131671590,0.4556,4515.8,4515.7,0.8194]
[1758131671788,0.6926,4515.8,4515.7,0.8194]
[1758131672189,3.4448,4515.9,4515.8,0.3421]
[1758131672394,3.6812,4515.9,4515.8,0.8194]
[1758131673194,3.2078,4515.9,4515.8,0.8194]
[1758131673397,0.4734,4516.1,4516.0,0.9629]
[1758131673703,1.0362,4516.1,4516.0,0.8194]
[1758131674902,0.7992,4516.1,4516.0,0.8194]
[1758131675102,1.0362,4516.1,4516.0,0.5851]
[1758131675296,1.0362,4516.1,4516.0,0.8194]
[1758131675697,0.6926,4516.1,4516.0,0.9629]
[1758131675899,3.2078,4516.5,4516.1,0.3421]
[1758131676096,3.2078,4516.5,4516.4,0.8194]
[1758131676097,3.4442,4516.5,4516.4,0.8194]
[1758131676691,0.2364,4516.5,4516.4,0.8194]
[1758131677203,0.4753,4516.7,4516.6,0.8256]
[1758131677501,0.2383,4516.8,4516.7,0.8256]
[1758131677702,0.4753,4516.8,4516.7,0.8256]
[1758131678400,0.2383,4516.8,4516.7,0.8256]
[1758131678603,0.3384,4516.7,4516.2,3.5654]
[1758131678802,0.7088,4516.8,4516.3,0.3576]
[1758131678803,0.5754,4516.8,4516.3,0.3576]
[1758131679108,0.4718,4516.8,4516.7,0.8256]
[1758131679401,0.7088,4516.8,4516.7,0.8256]
[1758131680099,0.2383,4516.8,4516.7,0.8256]
[1758131681903,0.8102,4516.8,4516.7,0.8256]
[1758131682100,0.8102,4516.8,4516.7,0.2386]
[1758131682300,0.8102,4516.8,4516.3,0.3576]
[1758131682497,0.7088,4516.8,4516.4,0.3576]
[1758131682692,0.4704,4516.5,4515.8,0.468]
[1758131682900,0.3384,4516.8,4516.3,0.468]
[1758131683106,1.0472,4516.9,4516.8,0.5962]
[1758131683898,1.0472,4516.9,4516.8,0.8256]
[1758131684197,0.8102,4516.9,4516.8,0.8256]
[1758131684396,1.0472,4516.9,4516.8,0.8256]
[1758131684905,3.4461,4517.1,4517.0,0.9628]
[1758131685602,3.2078,4517.1,4517.0,0.9628]
[1758131685902,3.4461,4517.1,4517.0,0.9628]
[1758131686608,4.018,4517.1,4517.0,0.8256]
[1758131686797,4.018,4517.1,4517.0,0.2386]
[1758131687304,4.018,4517.1,4517.0,0.5962]
[1758131687499,1.0472,4517.1,4517.0,0.9628]
[1758131687699,1.0472,4517.1,4517.0,0.8256]
[1758131688909,0.4718,4517.1,4517.0,0.9628]
[1758131689107,0.2383,4517.2,4517.1,0.8256]
[1758131689409,0.2383,4517.3,4517.2,0.8256]
[1758131689810,0.8102,4517.3,4517.2,0.8256]
[1758131690113,0.8102,4517.3,4517.2,0.5962]
[1758131690605,0.4718,4517.3,4517.2,0.8256]
[1758131690806,3.2078,4517.6,4517.5,0.1372]
[1758131691109,3.6821,4517.6,4517.5,0.9628]
[1758131691310,4.254,4517.6,4517.5,0.9628]
[1758131691510,4.018,4517.6,4517.5,0.9628]
[1758131691711,3.2078,4518.1,4517.6,0.3576]
[1758131691907,0.4743,4518.4,4518.3,0.468]
[1758131692103,0.4743,4518.4,4518.3,0.8256]
[1758131692306,3.5462,4518.7,4518.4,0.3576]
[1758131692503,3.5462,4518.7,4518.0,0.1372]
[1758131692504,0.8322,4519.1,4519.0,0.5962]
[1758131692704,1.0682,4519.1,4519.0,0.2386]
[1758131692909,0.022,4519.1,4519.0,0.8256]
[1758131693111,0.022,4519.1,4519.0,0.9628]
[1758131693608,3.2078,4520.2,4520.1,0.468]
[1758131693810,3.2078,4520.2,4520.1,0.3576]
[1758131694008,3.2078,4520.2,4520.1,4.3576]
[1758131694609,3.4438,4520.9,4520.1,4.0]
[1758131694811,0.3384,4520.8,4520.2,0.3576]
[1758131697411,0.2383,4520.3,4520.2,0.8256]
[1758131697610,1.0462,4520.3,4519.7,0.3576]
[1758131698220,0.8102,4520.3,4520.2,0.5538]
[1758131698428,0.4718,4520.3,4520.2,0.7843]
[1758131698621,0.4718,4520.3,4519.5,0.1372]
[1758131698622,0.2282,4519.7,4519.6,0.5538]
[1758131698828,0.797,4519.7,4519.6,0.5538]
[1758131699027,0.3472,4519.7,4519.1,0.3308]
[1758131700727,0.236,4519.6,4519.0,0.1405]
[1758131701332,0.236,4519.6,4519.1,0.3308]
[1758131701532,0.3472,4519.5,4519.0,0.4713]
[1758131701837,0.797,4518.9,4518.8,0.5538]
[1758131702128,0.797,4518.9,4518.5,0.1372]
[1758131702129,3.2078,4519.4,4519.3,0.4535]
[1758131702330,3.2078,4519.4,4519.3,0.7843]
[1758131702730,4.0048,4519.4,4519.3,0.7843]
[1758131703236,4.0048,4519.4,4519.0,0.1405]
[1758131703439,0.2282,4519.1,4519.0,0.6943]
[1758131703937,0.797,4519.1,4519.0,0.5538]
[1758131704530,3.2078,4519.4,4519.1,0.3308]
[1758131704726,3.4438,4519.9,4519.8,0.7843]
[1758131704933,3.436,4519.9,4519.8,0.7843]
[1758131705533,4.0048,4519.9,4519.1,0.3308]
[1758131706635,4.0048,4519.9,4519.8,0.223]
[1758131707029,4.2408,4519.9,4519.8,0.223]
[1758131707238,3.6576,4519.9,4519.8,0.7731]
[1758131707438,3.436,4519.9,4519.8,0.7731]
[1758131707736,0.8115,4519.9,4519.8,0.7731]
[1758131708038,0.8115,4519.9,4519.1,0.3346]
[1758131708335,0.4487,4519.4,4519.1,0.3346]
[1758131708537,0.2197,4519.3,4519.2,0.7804]
[1758131709238,3.2078,4520.0,4519.3,0.3346]
[1758131709445,4.0108,4520.0,4519.9,0.5649]
[1758131709639,4.2468,4520.0,4519.9,0.5649]
[1758131710242,1.039,4520.0,4519.9,0.5649]
[1758131710541,3.3472,4520.5,4519.9,0.5649]
[1758131710542,0.3543,4520.4,4519.9,0.7804]
[1758131710737,0.4557,4520.3,4520.2,0.7804]
[1758131710934,0.4487,4520.3,4520.2,0.7804]
[1758131711130,1.039,4520.3,4519.7,0.3346]
[1758131711339,1.039,4520.3,4520.2,0.2303]
[1758131711536,1.039,4520.3,4520.2,0.5649]
[1758131712034,1.039,4520.3,4520.2,0.7804]
[1758131712433,0.3543,4520.7,4520.2,0.7804]
[1758131712639,1.039,4520.7,4520.6,0.5649]
[1758131713539,0.3543,4521.1,4520.6,0.7804]
[1758131713742,0.4557,4521.0,4520.9,0.4458]
[1758131714041,40.8,4522.3,4520.1,0.39801]
[1758131714042,0.1307,4523.0,4522.4,0.39781]
[1758131714236,5.16519899,4525.8,4522.4,0.39781]
[1758131714237,0.23,4525.6,4522.4,4.236]
[1758131714436,0.1307,4523.5,4522.5,3.0771]
[1758131714637,0.485,4523.5,4523.4,3.2078]
[1758131715649,0.485,4523.5,4523.4,7.42887]
[1758131715942,0.485,4523.5,4523.4,7.2078]
[1758131716146,0.1307,4524.0,4523.5,0.22105999]
[1758131716341,0.52837,4524.0,4523.9,3.2078]
[1758131716538,0.52837,4524.0,4523.9,3.51645567]
[1758131717447,0.52837,4524.0,4523.9,3.2078]
[1758131718147,0.88267,4524.0,4523.9,3.2078]
[1758131719944,0.88267,4524.0,4523.9,7.2078]
[1758131720946,0.88267,4524.0,4523.9,7.4438]
[1758131721446,0.485,4524.0,4523.9,7.4438]
[1758131722145,0.485,4524.0,4523.9,3.2078]
[1758131722351,0.98849011,4524.0,4523.9,3.2078]
[1758131722535,4.6157,4524.0,4523.4,3.2078]
[1758131722741,0.485,4523.5,4523.0,0.0221]
[1758131722944,0.485,4523.5,4523.4,3.2078]
[1758131723550,4.6157,4523.5,4523.4,3.2078]
[1758131723946,4.8517,4523.5,4523.4,3.2078]
[1758131724645,4.8517,4523.5,4523.4,2.851]
[1758131724849,4.8517,4523.5,4523.0,0.0221]
[1758131725037,0.485,4523.1,4523.0,0.0221]
[1758131725649,0.1307,4523.0,4522.9,3.2078]
[1758131725845,0.6157,4523.0,4522.9,3.2078]
[1758131726244,0.485,4523.0,4522.9,3.2078]
[1758131726651,0.6157,4523.0,4522.9,3.2078]
[1758131727342,0.485,4523.0,4522.9,3.2078]
[1758131727743,0.6157,4523.0,4522.9,3.2078]
[1758131729943,0.485,4522.5,4522.4,3.2078]
[1758131730653,0.6157,4522.5,4522.4,3.2078]
[1758131730950,0.6157,4522.5,4521.9,3.2078]
[1758131730951,0.3543,4522.4,4521.9,3.2078]
[1758131731453,0.6157,4522.0,4521.9,3.2078]
[1758131731750,0.3543,4521.9,4521.4,3.2078]
[1758131731949,0.6157,4521.5,4521.4,3.2078]
[1758131732147,0.6157,4521.5,4520.9,3.2078]
[1758131732347,0.1307,4521.5,4520.9,3.2078]
[1758131732549,0.1307,4521.0,4520.9,3.2078]
[1758131732855,0.1307,4521.0,4520.9,3.5424]
[1758131733052,0.485,4521.0,4520.9,3.5424]
[1758131733250,0.6157,4521.0,4520.6,0.0221]
[1758131733454,0.485,4520.7,4520.6,0.0221]
[1758131733954,0.3543,4521.4,4520.6,0.3567]
[1758131734143,0.1307,4520.7,4520.6,0.3567]
[1758131734345,0.485,4520.7,4520.6,0.3567]
[1758131734551,3.3385,4521.5,4520.6,0.3567]
[1758131734758,0.3543,4521.2,4520.6,0.3346]
[1758131735055,0.3543,4521.1,4521.0,0.3346]
[1758131735250,0.236,4521.2,4521.0,0.3346]
[1758131735753,0.1307,4521.1,4521.0,0.3346]
[1758131735959,0.3543,4521.0,4520.9,3.2078]
[1758131736155,0.485,4521.0,4520.9,3.2078]
[1758131736456,0.1307,4521.0,4520.9,3.5424]
[1758131737560,0.3639,4521.7,4521.1,0.3656]
[1758131737852,0.3639,4521.2,4520.9,3.2078]
[1758131738056,0.236,4521.5,4521.0,0.3656]
[1758131738057,0.1307,4521.1,4521.0,0.3656]
[1758131738248,0.236,4521.8,4521.1,0.3656]
[1758131738452,0.236,4521.8,4520.1,0.0221]
[1758131738453,0.3639,4520.9,4520.3,3.2078]
[1758131738662,0.3639,4520.7,4520.3,3.2078]
[1758131738857,0.1307,4520.8,4520.3,3.2078]
[1758131739055,0.3639,4521.2,4520.4,0.3656]
[1758131739263,0.1307,4520.8,4520.4,0.3656]
[1758131739551,0.1307,4520.8,4520.5,0.1508]
[1758131739952,0.1307,4520.8,4520.3,3.2078]
[1758131739953,0.4946,4520.8,4520.3,3.2078]
[1758131740152,0.4946,4520.8,4520.4,0.236]
[1758131740354,0.145,4521.0,4520.3,3.2078]
[1758131740547,0.3639,4520.9,4520.3,3.5734]
[1758131740751,0.1307,4520.5,4520.4,0.3656]
[1758131742559,3.5717,4521.5,4520.5,0.1508]
[1758131742851,0.1307,4520.9,4520.7,0.3656]
[1758131743050,0.1307,4520.9,4520.8,3.5734]
[1758131743246,41.036,4521.8,4520.8,3.5734]
[1758131743458,0.3639,4521.4,4520.8,3.5734]
[1758131743649,0.3639,4521.4,4521.0,0.1508]
[1758131743847,0.3639,4521.4,4521.1,0.3656]
[1758131744045,0.1307,4521.2,4521.1,0.3656]
[1758131744447,0.236,4521.8,4521.1,0.3656]
[1758131744646,0.3639,4521.9,4521.1,0.3656]
[1758131744860,0.1307,4521.5,4521.1,0.3656]
[1758131745055,0.3639,4521.9,4521.4,0.3656]
[1758131745358,0.3639,4521.9,4521.3,3.2078]
[1758131745359,0.1307,4521.6,4521.5,0.5164]
[1758131745659,0.3639,4521.4,4520.7,3.2078]
[1758131745857,0.4946,4520.8,4520.7,3.2078]
[1758131746161,0.1307,4520.8,4520.7,3.5734]
[1758131746563,0.3639,4521.3,4520.8,0.3656]
[1758131746856,0.1307,4521.0,4520.7,3.2078]
[1758131747060,0.1307,4521.0,4520.8,0.3656]
[1758131747360,0.4946,4521.0,4520.7,3.2078]
[1758131747558,0.4946,4520.9,4520.8,0.3656]
[1758131747957,0.3639,4520.9,4520.8,0.3656]
[1758131748155,0.145,4521.5,4520.7,3.2078]
[1758131748356,0.3639,4521.4,4520.7,3.2078]
[1758131748663,0.4946,4520.8,4520.7,3.2078]
[1758131748862,0.1307,4520.8,4520.2,3.2078]
[1758131749053,0.3639,4520.9,4520.2,3.2078]
[1758131749257,0.145,4521.0,4520.2,3.2078]
[1758131749258,0.1307,4520.3,4520.2,3.2078]
[1758131749458,0.4946,4520.3,4520.2,3.2078]
[1758131752059,0.3639,4520.2,4519.4,0.3656]
[1758131752253,0.145,4519.5,4518.9,3.2078]
[1758131752561,0.3639,4519.0,4518.9,3.2078]
[1758131752860,0.3639,4519.8,4519.0,0.5164]
[1758131753361,0.1307,4519.1,4519.0,0.3656]
[1758131753858,0.1307,4519.1,4518.2,3.2078]
[1758131753859,0.5089,4519.0,4518.2,3.2078]
[1758131754056,0.145,4519.0,4518.2,3.2078]
[1758131754264,0.1307,4518.3,4518.2,3.2078]
[1758131754556,0.4946,4518.3,4518.2,3.2078]
[1758131754957,0.1307,4518.3,4518.2,3.5734]
[1758131755259,0.4946,4518.3,4518.2,3.5734]
[1758131755657,0.1307,4518.3,4518.2,3.5734]
[1758131755858,0.236,4518.4,4518.3,0.3656]
[1758131756459,0.145,4519.0,4518.3,0.3656]
[1758131756764,0.1307,4518.4,4518.3,0.3656]
[1758131757166,0.5999,4518.9,4518.3,0.3656]
[1758131757358,3.2078,4519.2,4518.3,0.3656]
[1758131757657,0.1307,4518.7,4518.3,0.3656]
[1758131758052,0.1307,4518.7,4518.2,3.2078]
[1758131758360,0.236,4518.9,4518.6,0.3834]
[1758131758554,0.3667,4518.9,4518.8,0.3834]
[1758131758754,0.1307,4518.9,4518.8,0.3834]
[1758131758958,0.6199,4519.2,4518.8,0.3834]
[1758131759157,0.6199,4519.2,4518.7,3.2078]
[1758131759353,0.1307,4519.0,4518.7,3.2078]
[1758131759557,0.236,4519.2,4518.7,3.2078]
[1758131759766,0.5146,4518.8,4518.7,3.2078]
[1758131759962,0.1307,4518.8,4518.3,0.3834]
[1758131760261,0.1307,4518.6,4518.5,0.5247]
[1758131760568,0.236,4519.0,4518.5,0.1413]
[1758131760865,0.1307,4518.8,4518.5,0.1413]
[1758131761061,0.3839,4518.6,4518.5,0.3834]
[1758131761359,0.1307,4518.6,4518.2,3.5912]
[1758131761562,0.1307,4518.3,4517.7,0.3834]
[1758131761773,3.2078,4518.7,4517.7,0.3834]
[1758131761958,0.1307,4518.4,4518.0,0.1413]
[1758131762459,3.2078,4518.7,4518.1,0.3834]
[1758131762655,0.152,4518.5,4517.6,3.5912]
[1758131762855,3.2078,4518.7,4517.7,0.3834]
[1758131763066,0.3839,4518.8,4518.4,3.2078]
[1758131763265,0.1307,4518.7,4518.5,0.3834]
[1758131763468,0.1307,4518.7,4518.4,3.2078]
[1758131763664,0.1307,4518.7,4518.5,0.3834]
[1758131763966,0.3839,4518.9,4518.4,3.2078]
[1758131764372,0.1307,4518.7,4518.6,0.3834]
[1758131764865,0.388,4519.0,4518.4,3.2078]
[1758131765164,0.3839,4518.5,4518.4,3.2078]
[1758131765369,0.1307,4518.6,4518.5,0.3834]
[1758131765559,0.1307,4518.5,4518.4,3.2078]
[1758131765766,0.1307,4518.5,4518.0,0.1413]
[1758131766070,0.3839,4518.4,4518.3,0.3834]
[1758131766363,3.2078,4518.8,4518.0,0.1413]
[1758131766558,0.1307,4518.7,4518.4,3.2078]
[1758131766761,0.5146,4518.7,4518.5,0.3754]
[1758131766969,0.3839,4518.7,4518.4,3.2078]
[1758131767161,0.3839,4518.7,4518.5,0.3754]
[1758131767361,0.6093,4519.0,4518.6,0.3754]
[1758131767664,0.1307,4518.7,4518.6,0.3754]
[1758131767862,3.2078,4519.4,4518.6,0.3754]
[1758131768068,0.1307,4519.1,4519.0,0.149]
[1758131768364,0.1307,4519.1,4519.0,0.5244]
[1758131768571,0.3733,4519.2,4518.9,3.2078]
[1758131768772,0.3733,4519.0,4518.9,3.5832]
[1758131768966,0.1307,4519.1,4519.0,0.3754]
[1758131769172,0.3733,4519.5,4518.9,3.2078]
[1758131769173,0.236,4519.4,4518.9,3.2078]
[1758131769374,0.1468,4519.0,4518.5,0.3754]
[1758131769564,0.1307,4518.7,4518.5,0.3754]
[1758131769764,0.1307,4518.7,4518.3,0.3754]
[1758131769970,0.5201,4519.0,4518.3,0.3754]
[1758131770170,0.1468,4519.0,4518.3,0.3754]
[1758131770368,0.1307,4518.5,4518.2,3.2078]
[1758131770564,0.1468,4518.5,4518.2,3.2078]
[1758131770764,0.504,4518.4,4518.3,0.3754]
[1758131771268,0.3733,4518.7,4518.2,3.2078]
[1758131771470,0.1307,4518.6,4518.5,0.149]
[1758131771672,0.1307,4518.6,4518.5,0.5244]
[1758131772172,0.504,4518.6,4518.2,3.2078]
[1758131772368,0.1307,4518.6,4518.3,0.3754]
[1758131772570,0.1307,4518.5,4518.3,0.3754]
[1758131772770,0.3733,4518.4,4518.3,0.3754]
[1758131773376,0.3733,4518.9,4518.3,0.3754]
[1758131773575,0.3733,4518.4,4518.3,0.3754]
[1758131773878,0.1307,4518.5,4518.3,0.3754]
[1758131773879,0.504,4518.7,4518.3,0.3754]
[1758131774076,0.504,4518.7,4518.2,3.2078]
[1758131774281,0.3733,4518.7,4518.2,3.2078]
[1758131774669,0.3733,4518.7,4518.3,0.3754]
[1758131774974,0.3733,4518.7,4518.2,3.2078]
[1758131775276,0.3733,4518.7,4518.3,0.3754]
[1758131775772,0.3733,4518.9,4518.2,3.2078]
[1758131776172,0.504,4518.5,4518.2,3.2078]
[1758131776375,0.3733,4518.4,4518.3,0.3754]
[1758131776677,0.3733,4518.4,4518.2,3.2078]
[1758131776974,0.1468,4518.0,4517.8,0.0221]
[1758131777178,0.3733,4517.9,4517.8,0.0221]
[1758131777369,0.504,4517.9,4517.6,0.3754]
[1758131777672,0.1307,4517.7,4517.5,3.3568]
[1758131777876,0.3733,4518.2,4517.6,0.3754]
[1758131778171,0.1307,4518.1,4517.5,3.3568]
[1758131778574,0.3733,4518.7,4517.7,0.3754]
[1758131778768,0.7023287,4518.6,4517.7,0.3754]
[1758131778973,0.1307,4518.4,4517.7,0.3754]
[1758131779675,0.236,4518.6,4517.7,0.3754]
[1758131779869,3.2078,4518.9,4518.2,0.3754]
[1758131780069,0.1307,4518.5,4518.2,0.3754]
[1758131780577,0.3733,4518.9,4518.2,0.3754]
[1758131780767,0.1468,4518.5,4518.1,3.2078]
[1758131780970,0.1307,4518.2,4518.1,3.2078]
[1758131781166,0.504,4518.2,4518.1,3.2078]
[1758131781370,0.3733,4518.2,4518.1,3.2078]
[1758131782377,0.1468,4518.0,4517.8,0.0221]
[1758131782581,0.504,4517.9,4517.8,0.0221]
[1758131782783,0.504,4517.9,4517.8,3.5832]
[1758131782978,1.98661499,4520.4,4517.8,3.5832]
[1758131782979,3.2078,4519.3,4518.0,0.149]
[1758131783182,3.2078,4519.3,4518.4,0.3754]
[1758131783183,1.07679185,4519.2,4518.4,0.3754]
[1758131783382,0.1307,4518.6,4518.4,0.3754]
[1758131783581,0.84079185,4518.5,4518.1,0.3754]
[1758131783782,0.1307,4518.6,4518.3,3.2078]
[1758131784084,0.46757868,4518.5,4518.4,0.3754]
[1758131784672,0.84087868,4518.5,4518.4,0.3754]
[1758131784877,0.59827868,4518.5,4518.1,0.3754]
[1758131785072,0.46757868,4518.4,4518.0,0.149]
[1758131785284,0.1307,4518.4,4518.3,3.5832]
[1758131785485,0.3733,4518.9,4518.3,3.5832]
[1758131785673,0.1307,4518.4,4518.3,0.3754]
[1758131785879,0.5982776,4518.4,4518.3,0.3754]
[1758131786078,0.4675776,4518.4,4518.3,0.3754]
[1758131786278,0.3733,4518.7,4518.1,0.3754]
[1758131786582,0.1307,4518.4,4518.1,0.3754]
[1758131786883,0.1307,4518.4,4518.3,0.8611]
[1758131787080,0.398,4519.0,4518.9,0.2351]
[1758131787282,1.71862719,4519.0,4518.9,0.2351]
[1758131787480,0.71882719,4519.0,4518.9,0.8611]
[1758131787883,0.236,4519.2,4519.0,0.149]
[1758131788085,0.236,4519.2,4519.1,0.8611]
[1758131788381,3.2078,4520.4,4519.2,0.3754]
[1758131788578,0.3819,4519.3,4519.2,0.8611]
[1758131788886,0.5201,4520.0,4519.2,0.3754]
[1758131789180,0.1307,4519.6,4519.0,0.149]
[1758131789484,0.1307,4519.6,4519.5,0.149]
[1758131789783,0.236,4520.0,4519.6,0.3754]
[1758131790087,0.3733,4519.8,4519.6,0.3754]
[1758131790383,0.3733,4519.7,4519.1,0.3754]
[1758131790576,0.1307,4519.5,4519.1,0.3754]
[1758131790777,0.3733,4519.4,4519.1,0.3754]
[1758131790977,0.3733,4519.8,4519.1,0.3754]
[1758131791173,0.1307,4519.5,4519.0,0.149]
[1758131791477,0.3733,4519.3,4519.0,0.3754]
[1758131791682,0.1307,4519.4,4519.0,0.3754]
[1758131791886,0.1307,4519.4,4518.7,0.236]
[1758131792180,0.1307,4519.4,4518.8,0.3754]
[1758131792375,0.3733,4519.2,4518.4,3.2078]
[1758131792581,0.1307,4518.7,4518.6,0.3754]
[1758131793085,0.6093,4519.2,4518.6,0.3754]
[1758131793383,0.1307,4518.7,4518.6,0.3754]
[1758131793778,0.3733,4519.1,4518.6,0.3754]
[1758131794080,0.3733,4518.6,4518.1,0.3754]
[1758131794283,0.1307,4518.6,4518.1,0.3754]
[1758131794780,0.1307,4518.6,4518.0,0.149]
[1758131795177,0.236,4519.2,4518.6,0.3754]
[1758131795376,0.48016936,4519.1,4518.6,0.3754]
[1758131795574,0.1307,4518.8,4518.6,0.3754]
[1758131795980,0.3733,4519.2,4518.6,0.3754]
[1758131796286,0.1307,4518.9,4518.6,0.3754]
[1758131796783,0.6245,4519.2,4519.1,0.2351]
[1758131796975,0.2512,4519.2,4519.1,0.8305]
[1758131797176,0.236,4519.5,4519.1,0.8305]
[1758131797479,0.236,4519.7,4519.3,0.479]
[1758131797783,0.6085,4519.5,4519.4,0.8413]
[1758131797981,1.47730552,4519.5,4518.9,0.3623]
[1758131798182,0.8585,4519.3,4519.2,0.2459]
[1758131798379,0.8585,4519.3,4519.2,0.8413]
[1758131798579,0.9892,4519.3,4519.2,0.8413]
[1758131800184,0.9892,4519.3,4519.2,0.2459]
[1758131800386,0.9892,4519.3,4518.7,0.3623]
[1758131800585,0.9892,4519.1,4519.0,0.8413]
[1758131800787,0.374,4519.1,4519.0,0.8413]
[1758131800986,0.6085,4519.1,4519.0,0.8413]
[1758131801386,0.8585,4519.1,4519.0,0.8413]
[1758131801682,0.9892,4519.1,4518.5,0.5113]
[1758131802479,0.2433,4518.6,4518.5,0.8413]
[1758131803485,0.6085,4518.6,4518.5,0.8413]
[1758131803691,0.632,4519.0,4518.9,0.2459]
[1758131804183,0.236,4519.1,4519.0,0.479]
[1758131804384,0.236,4519.1,4518.4,3.2078]
[1758131804385,0.1307,4518.8,4518.7,0.2459]
[1758131804584,0.624,4518.8,4518.7,0.2459]
[1758131804885,0.4933,4518.8,4518.7,0.8413]
[1758131805284,0.3652,4519.1,4518.7,0.479]
[1758131805480,0.6085,4518.9,4518.8,0.5954]
[1758131805685,0.8585,4518.9,4518.4,3.2078]
[1758131805883,0.4933,4518.6,4518.5,0.6082]
[1758131806085,0.8585,4518.6,4518.5,0.8413]
[1758131807087,0.9892,4518.6,4518.4,3.2078]
[1758131807287,0.9972,4518.5,4518.0,0.3623]
[1758131807495,0.1307,4518.2,4518.1,0.2459]
[1758131807688,0.624,4518.2,4518.1,0.6082]
[1758131807991,0.624,4518.2,4517.9,0.0221]
[1758131807992,0.9972,4518.0,4517.9,0.6303]
[1758131808192,1.1279,4518.0,4517.9,0.268]
[1758131808391,0.7392,4518.0,4517.9,0.479]
[1758131808696,0.7392,4518.0,4517.9,0.8413]
[1758131808891,0.374,4518.0,4517.9,0.8413]
[1758131809186,0.9892,4518.0,4517.9,0.479]
[1758131809394,0.9892,4518.0,4517.9,0.8413]
[1758131809894,0.2433,4518.0,4517.9,0.8413]
[1758131810587,0.6002,4518.4,4517.9,0.8413]
[1758131810788,0.1307,4518.1,4518.0,0.6203]
[1758131810989,0.1307,4518.1,4518.0,0.9826]
[1758131811294,0.8585,4518.1,4518.0,0.8413]
[1758131811789,0.8585,4518.1,4517.7,3.2078]
[1758131811989,0.2433,4517.8,4517.7,3.4537]
[1758131812187,0.6085,4517.8,4517.7,3.6868]
[1758131812387,0.6085,4517.8,4517.7,0.479]
[1758131812584,0.2433,4517.8,4517.7,0.8413]
[1758131812791,4.0663,4518.3,4518.2,0.2459]
[1758131812991,4.197,4518.3,4518.2,0.8413]
[1758131814687,4.197,4518.3,4517.8,0.3623]
[1758131814889,0.374,4518.1,4518.0,0.8413]
[1758131815088,0.2694,4518.0,4517.5,0.5257]
[1758131815295,0.4933,4517.6,4517.5,0.8634]
[1758131815594,0.8585,4517.6,4517.5,0.8634]
[1758131816296,0.8585,4517.6,4517.5,0.8413]
[1758131817685,0.479,4517.3,4517.2,3.4592]
[1758131817891,0.8312,4517.3,4517.2,3.2078]
[1758131818092,0.8312,4517.3,4517.2,3.4592]
[1758131818390,3.4068,4517.8,4517.7,0.8326]
[1758131818391,3.798,4517.8,4517.7,0.8326]
[1758131818595,4.54358618,4517.8,4517.7,0.8326]
[1758131818798,4.32208618,4517.8,4517.7,0.8326]
[1758131818992,3.71238618,4517.8,4517.7,0.8326]
[1758131819197,0.3522,4518.2,4517.7,0.4884]
[1758131819391,0.50452879,4518.1,4518.0,0.9785]
[1758131819897,3.4428,4518.4,4518.0,0.6343]
[1758131820095,2.95769924,4518.4,4518.2,0.3442]
[1758131820296,0.142,4518.5,4518.3,3.4428]
[1758131820689,0.142,4518.5,4518.4,0.22132]
[1758131821193,0.3522,4518.8,4518.4,0.61948]
[1758131821388,0.3522,4518.8,4518.6,0.39815]
[1758131821594,0.3522,4518.8,4518.7,0.235]
[1758131821791,0.5902,4518.4,4518.3,3.2078]
[1758131821996,0.142,4518.5,4518.3,3.4428]
[1758131822296,0.142,4518.5,4518.4,0.39817]
[1758131822499,0.142,4518.5,4518.3,3.84097]
[1758131822798,0.142,4518.5,4518.3,3.60597]
[1758131822799,0.4942,4518.5,4518.3,3.60597]
[1758131822996,0.142,4519.0,4518.6,0.39814]